bitfinex/quotes_SOLUSD_20250207
["timestamp","ask_amount","ask_price","bid_price","bid_amount"]
[1738902709861,1.5114,195.47,195.38,13.41184853]
[1738902710054,0.03,195.48,195.4,13.41184853]
[1738902710334,20.0,195.47,195.4,13.41184853]
[1738902710664,0.03,195.48,195.4,13.41184853]
[1738902711789,20.03,195.48,195.4,13.41184853]
[1738902712979,0.03,195.48,195.41,0.12549]
[1738902713179,0.03,195.48,195.43,13.41184853]
[1738902713679,0.03,195.48,195.45,13.41184853]
[1738902715898,0.03,195.48,195.46,1.5295]
[1738902716193,0.03,195.48,195.47,13.41184853]
[1738902717466,0.03,195.48,195.47,18.52764853]
[1738902722583,0.03,195.48,195.45,5.1162]
[1738902722973,0.03,195.48,195.45,18.52804853]
[1738902723177,0.03,195.48,195.44,223.9166]
[1738902723377,0.03,195.48,195.44,218.8]
[1738902723592,0.03,195.48,195.45,13.79134019]
[1738902724804,0.03,195.48,195.47,5.1158]
[1738902725007,0.03,195.49,195.47,5.7455554]
[1738902725206,0.0001,195.49,195.48,13.66282853]
[1738902725389,0.0001,195.49,195.48,14.04136821]
[1738902726412,0.0001,195.49,195.48,13.66282853]
[1738902726904,0.0001,195.49,195.48,14.04139849]
[1738902729225,0.0001,195.49,195.48,13.79041849]
[1738902731014,0.0001,195.49,195.47,5.1158]
[1738902732417,0.0001,195.49,195.48,13.41184853]
[1738902734018,0.0001,195.49,195.47,5.1158]
[1738902735024,0.0001,195.49,195.46,13.53733853]
[1738902735237,0.0001,195.49,195.48,13.41184853]
[1738902736424,0.0001,195.49,195.47,5.1158]
[1738902736636,0.0001,195.49,195.48,13.41184853]
[1738902737627,0.0001,195.49,195.45,5.1161]
[1738902737829,0.0001,195.49,195.46,13.41184853]
[1738902738725,0.0001,195.49,195.45,18.52814853]
[1738902740733,0.0001,195.49,195.45,13.41184853]
[1738902741028,10.0634524,195.49,195.45,13.41184853]
[1738902742641,0.0001,195.49,195.45,13.41184853]
[1738902743932,0.0001,195.49,195.44,5.1166]
[1738902744241,0.0001,195.49,195.45,13.41184853]
[1738902748639,10.0633524,195.47,195.41,5.1174]
[1738902749153,10.0633524,195.46,195.4,0.063]
[1738902749444,10.0633524,195.47,195.4,0.063]
[1738902750243,10.0633524,195.47,195.4,13.47484853]
[1738902751341,10.0633524,195.47,195.4,5.1804]
[1738902752644,11.6105524,195.47,195.4,0.063]
[1738902752829,11.6105524,195.47,195.4,13.47484853]
[1738902753027,10.0633524,195.45,195.4,0.063]
[1738902753229,10.0633524,195.44,195.4,0.063]
[1738902754243,10.0633524,195.45,195.4,0.063]
[1738902757057,7.6243,195.47,195.4,0.063]
[1738902757342,17.6876524,195.47,195.4,0.063]
[1738902757548,10.0633524,195.46,195.4,0.063]
[1738902757750,22.8035524,195.47,195.4,0.063]
[1738902757925,17.6876524,195.47,195.4,0.063]
[1738902758550,10.0633524,195.46,195.4,0.063]
[1738902759156,10.0633524,195.45,195.4,0.063]
[1738902760051,20.0,195.42,195.4,0.063]
[1738902762560,30.0633524,195.43,195.4,0.063]
[1738902763548,10.0633524,195.42,195.4,0.063]
[1738902764248,20.0,195.41,195.4,0.063]
[1738902764948,10.0633524,195.46,195.4,0.063]
[1738902765751,10.0633524,195.45,195.4,0.063]
[1738902765957,30.0633524,195.44,195.4,0.063]
[1738902766137,10.0633524,195.43,195.4,0.063]
[1738902766653,20.0,195.41,195.4,0.063]
[1738902769941,10.0633524,195.42,195.4,0.063]
[1738902772939,20.0,195.41,195.4,0.063]
[1738902773457,10.0633524,195.44,195.4,0.063]
[1738902773634,30.0633524,195.44,195.4,0.063]
[1738902775254,10.0633524,195.43,195.4,0.063]
[1738902775651,20.0,195.44,195.4,0.063]
[1738902775862,10.0633524,195.46,195.4,0.063]
[1738902776035,10.0633524,195.47,195.4,0.063]
[1738902776240,10.0633524,195.48,195.4,0.063]
[1738902777035,10.0633524,195.48,195.4,5.1807]
[1738902777240,10.0633524,195.48,195.41,13.41184853]
[1738902778854,10.0634524,195.49,195.41,18.52914853]
[1738902779557,30.0633524,195.48,195.41,5.1173]
[1738902779762,10.0633524,195.47,195.41,5.1173]
[1738902780253,10.0633524,195.48,195.42,13.41184853]
[1738902780769,30.0633524,195.48,195.42,13.41184853]
[1738902781160,30.0633524,195.48,195.42,18.52894853]
[1738902781974,10.0633524,195.48,195.42,18.52894853]
[1738902782140,0.0001,195.49,195.42,18.908504]
[1738902783069,0.0001,195.49,195.42,18.52894853]
[1738902783277,10.0634524,195.49,195.42,18.52894853]
[1738902787167,10.0633524,195.47,195.42,18.52894853]
[1738902787473,10.0633524,195.45,195.4,6.7554]
[1738902787976,10.0633524,195.44,195.41,13.41184853]
[1738902788163,10.0633524,195.44,195.42,0.063]
[1738902788479,30.0633524,195.46,195.42,0.063]
[1738902789457,10.0633524,195.47,195.42,0.063]
[1738902789687,10.0634524,195.49,195.42,0.063]
[1738902789895,0.0001,195.49,195.42,0.4425086]
[1738902790484,10.0634524,195.49,195.42,0.063]
[1738902790690,10.0633524,195.48,195.42,0.063]
[1738902791195,10.0634524,195.49,195.42,0.063]
[1738902792095,10.0634524,195.49,195.42,0.31398]
[1738902792271,0.0001,195.49,195.42,0.31398]
[1738902793567,0.0001,195.49,195.44,13.41184853]
[1738902794971,0.0001,195.49,195.43,5.1169]
[1738902796893,10.0634524,195.49,195.43,5.1169]
[1738902798978,0.0001,195.49,195.44,13.41184853]
[1738902800693,0.0001,195.49,195.43,13.41184853]
[1738902800868,0.0001,195.49,195.44,0.63018255]
[1738902801064,0.0001,195.49,195.46,0.25098]
[1738902801383,0.0001,195.49,195.47,14.97124853]
[1738902802287,0.0001,195.49,195.48,18.52744853]
[1738902808085,0.0001,195.49,195.48,18.77842853]
[1738902808270,0.03,195.52,195.5,0.25098]
[1738902809489,0.03,195.52,195.51,18.52664853]
[1738902811596,0.03,195.52,195.51,18.77762853]
[1738902812694,0.03,195.52,195.51,18.52664853]
[1738902813070,0.03,195.52,195.5,5.115]
[1738902813266,0.03,195.52,195.49,223.9153]
[1738902813472,10.0933524,195.52,195.48,5.1155]
[1738902813689,10.0933524,195.52,195.49,13.41184853]
[1738902813901,10.0933524,195.52,195.48,5.1155]
[1738902814205,10.0933524,195.52,195.44,5.1166]
[1738902814568,10.0633524,195.51,195.45,13.41184853]
[1738902815594,10.0633524,195.5,195.44,18.52844853]
[1738902816103,10.0633524,195.47,195.44,18.52844853]
[1738902816286,10.0633524,195.47,195.43,0.063]
[1738902816703,10.0633524,195.47,195.43,5.1799]
[1738902816868,10.0633524,195.48,195.43,5.1799]
[1738902817913,10.0633524,195.48,195.43,13.47484853]
[1738902818203,10.0633524,195.49,195.43,13.47484853]
[1738902818911,10.0633524,195.49,195.43,5.1797]
[1738902819686,10.0633524,195.49,195.43,0.063]
[1738902819886,10.0633524,195.49,195.43,13.47484853]
[1738902821103,10.0633524,195.49,195.43,0.063]
[1738902821283,10.0633524,195.49,195.43,5.1798]
[1738902822205,10.0633524,195.49,195.43,13.47484853]
[1738902822405,10.0633524,195.48,195.43,13.47484853]
[1738902824108,10.0633524,195.47,195.43,0.063]
[1738902824285,10.0633524,195.45,195.43,0.063]
[1738902824607,10.0633524,195.44,195.43,0.063]
[1738902824786,10.0633524,195.45,195.43,0.063]
[1738902826106,16.1670524,195.44,195.43,0.063]
[1738902826705,16.2925424,195.44,195.43,0.063]
[1738902826902,17.25230312,195.44,195.43,0.063]
[1738902827916,22.36890312,195.44,195.43,0.063]
[1738902828707,22.24341312,195.44,195.43,0.063]
[1738902828912,21.2836524,195.44,195.43,0.063]
[1738902830685,21.4091424,195.44,195.43,0.063]
[1738902831322,21.2836524,195.44,195.43,0.063]
[1738902833713,16.1670524,195.44,195.43,0.063]
[1738902833913,10.0633524,195.44,195.43,0.063]
[1738902834795,15.1799524,195.44,195.43,0.063]
[1738902836818,15.3054424,195.44,195.43,0.063]
[1738902837030,16.26520638,195.44,195.43,0.063]
[1738902841312,31.25098,195.43,195.42,0.063]
[1738902841512,31.12549,195.41,195.4,0.063]
[1738902841720,81.40220432,195.41,195.4,0.063]
[1738902841921,11.02330472,195.41,195.4,0.063]
[1738902842226,10.0633524,195.41,195.4,0.063]
[1738902843742,15.1807524,195.41,195.4,0.063]
[1738902847149,15.3062424,195.41,195.4,0.063]
[1738902847432,85.685142,195.41,195.4,0.063]
[1738902847638,86.685142,195.41,195.4,0.063]
[1738902847944,87.64510156,195.41,195.4,0.063]
[1738902848135,86.64510156,195.41,195.4,0.063]
[1738902848332,20.0,195.38,195.37,0.063]
[1738902848544,31.14881692,195.38,195.37,0.063]
[1738902849640,36.26701692,195.38,195.37,0.063]
[1738902851950,35.1815524,195.38,195.37,0.063]
[1738902852234,10.0633524,195.38,195.37,0.063]
[1738902852610,35.1815524,195.38,195.37,0.063]
[1738902854436,35.3070424,195.38,195.37,0.063]
[1738902855024,35.1815524,195.38,195.37,0.063]
[1738902857545,10.0633524,195.38,195.37,0.063]
[1738902859231,10.0633524,195.39,195.37,0.063]
[1738902859432,10.0633524,195.4,195.37,0.063]
[1738902859646,10.0633524,195.39,195.37,0.063]
[1738902859943,0.95963329,195.45,195.37,0.063]
[1738902859944,10.0633524,195.38,195.37,0.063]
[1738902864943,10.0633524,195.4,195.37,0.063]
[1738902865448,10.0633524,195.39,195.37,0.063]
[1738902867958,10.0633524,195.38,195.37,0.063]
[1738902870836,10.0633524,195.39,195.37,0.063]
[1738902876440,10.0633524,195.38,195.37,0.063]
[1738902880254,15.1815524,195.38,195.37,0.063]
[1738902883061,15.3070424,195.38,195.37,0.063]
[1738902883356,16.26709603,195.38,195.37,0.063]
[1738902889650,15.1815524,195.38,195.37,0.063]
[1738902890566,10.0633524,195.38,195.37,0.063]
[1738902892269,15.1815524,195.38,195.37,0.063]
[1738902893549,10.0633524,195.38,195.37,0.063]
[1738902896974,10.0633524,195.39,195.37,0.063]
[1738902898673,10.0633524,195.38,195.37,0.063]
[1738902900579,10.0633524,195.39,195.37,0.063]
[1738902900764,0.03,195.4,195.38,13.41184853]
[1738902901780,0.03,195.4,195.37,81.663]
[1738902901952,10.0933524,195.4,195.37,81.663]
[1738902904089,10.0633524,195.39,195.37,81.663]
[1738902905183,10.0933524,195.4,195.37,81.663]
[1738902909267,10.0633524,195.39,195.37,81.663]
[1738902910289,10.0933524,195.4,195.37,81.663]
[1738902911387,0.03,195.4,195.38,13.41184853]
[1738902912784,10.0933524,195.4,195.37,86.7813]
[1738902912987,10.0633524,195.39,195.37,81.663]
[1738902913767,10.0633524,195.38,195.37,81.663]
[1738902914391,10.0633524,195.38,195.37,0.063]
[1738902918076,15.1815524,195.38,195.37,0.063]
[1738902918785,10.0633524,195.38,195.37,0.063]
[1738902920894,15.1815524,195.38,195.37,0.063]
[1738902922682,10.0633524,195.38,195.37,0.063]
[1738902928985,15.1815524,195.38,195.37,0.063]
[1738902935996,16.1414514,195.38,195.37,0.063]
[1738902937401,15.1815524,195.38,195.37,0.063]
[1738902937601,10.0633524,195.38,195.37,0.063]
[1738902938892,5.1477,195.4,195.37,0.063]
[1738902938893,10.0633524,195.39,195.37,0.063]
[1738902939907,0.03,195.4,195.38,13.41184853]
[1738902940912,0.03,195.4,195.39,5.1179]
[1738902941683,15.2110524,195.4,195.37,0.063]
[1738902941907,10.0633524,195.38,195.37,0.063]
[1738902942400,10.0633524,195.39,195.37,0.063]
[1738902942904,10.0633524,195.38,195.37,0.063]
[1738902944610,30.0633524,195.38,195.37,0.063]
[1738902944800,35.1815524,195.38,195.37,0.063]
[1738902945188,35.3070424,195.38,195.37,0.063]
[1738902946007,15.3070424,195.38,195.37,0.063]
[1738902946506,45.3070424,195.38,195.37,0.063]
[1738902948209,15.3070424,195.38,195.37,0.063]
[1738902948404,45.3070424,195.38,195.37,0.063]
[1738902948620,35.32371279,195.38,195.37,0.063]
[1738902948917,15.32371279,195.38,195.37,0.063]
[1738902949810,15.19822279,195.38,195.37,0.063]
[1738902949991,10.08002279,195.38,195.37,0.063]
[1738902951215,15.19822279,195.38,195.37,0.063]
[1738902951920,16.28360583,195.38,195.37,0.063]
[1738902952914,46.28360583,195.38,195.36,0.063]
[1738902953104,10.08002279,195.31,195.28,0.063]
[1738902953414,10.08002279,195.29,195.28,0.063]
[1738902955096,10.08002279,195.3,195.28,0.063]
[1738902955412,10.08002279,195.31,195.28,0.063]
[1738902955602,10.08002279,195.3,195.28,0.063]
[1738902956008,10.08002279,195.3,195.28,5.1838]
[1738902956205,10.08002279,195.31,195.29,13.41184853]
[1738902958936,0.9600067,195.38,195.29,232.21184853]
[1738902959129,10.08002279,195.37,195.3,0.25098]
[1738902959421,10.08002279,195.37,195.31,13.41184853]
[1738902959632,10.08002279,195.36,195.31,232.21184853]
[1738902960222,10.08002279,195.36,195.32,5.1198]
[1738902961199,0.03,195.4,195.35,10.08002279]
[1738902961399,0.03,195.4,195.38,10.08002279]
[1738902961608,0.03,195.4,195.39,13.41184853]
[1738902961835,0.03,195.4,195.39,232.21184853]
[1738902962115,10.11002279,195.4,195.39,232.21184853]
[1738902962316,10.11002279,195.4,195.39,218.8]
[1738902962521,10.11002279,195.4,195.37,0.063]
[1738902962704,15.74211813,195.39,195.37,0.063]
[1738902963336,15.77211813,195.4,195.37,0.063]
[1738902963818,15.74211813,195.39,195.37,0.063]
[1738902964022,15.74211813,195.38,195.37,0.063]
[1738902964897,15.74211813,195.39,195.37,0.063]
[1738902966623,15.77211813,195.4,195.37,0.063]
[1738902967827,15.74211813,195.39,195.37,0.063]
[1738902968127,15.74211813,195.38,195.37,0.063]
[1738902970034,21.94564505,195.38,195.37,0.063]
[1738902970542,21.94564505,195.38,195.29,13.41184853]
[1738902970722,15.74211813,195.31,195.29,13.41184853]
[1738902970929,15.74211813,195.32,195.29,13.41184853]
[1738902971132,15.74211813,195.33,195.29,13.41184853]
[1738902971332,15.74211813,195.33,195.31,13.41184853]
[1738902972608,15.74211813,195.36,195.31,5.1199]
[1738902972938,15.74211813,195.36,195.32,13.41184853]
[1738902974035,15.74211813,195.36,195.32,18.53134853]
[1738902974223,15.74211813,195.35,195.32,18.59434853]
[1738902974921,15.77211813,195.4,195.34,13.41184853]
[1738902975122,15.77211813,195.4,195.34,232.59208638]
[1738902975419,0.03,195.4,195.36,29.15396666]
[1738902976041,0.03,195.4,195.39,0.25098]
[1738902976345,0.03,195.4,195.39,248.58462952]
[1738902976639,0.03,195.4,195.39,248.20494666]
[1738902976934,0.03,195.4,195.39,248.45592666]
[1738902977121,15.77211813,195.49,195.41,0.25098]
[1738902977321,0.03,195.49,195.43,0.25098]
[1738902977531,15.77211813,195.49,195.43,0.25098]
[1738902978250,15.74211813,195.48,195.45,13.41184853]
[1738902978425,15.74211813,195.47,195.45,232.21184853]
[1738902979947,15.74211813,195.48,195.45,232.21184853]
[1738902980858,15.77211813,195.49,195.45,237.32814853]
[1738902981031,0.03,195.49,195.46,0.63019578]
[1738902981236,0.03,195.49,195.47,13.41184853]
[1738902983350,0.03,195.49,195.48,18.52744853]
[1738902984733,0.03,195.49,195.48,155.97842853]
[1738902985259,0.03,195.49,195.48,155.72744853]
[1738902987151,15.77211813,195.49,195.48,150.61184853]
[1738902988036,0.03,195.49,195.48,150.61184853]
[1738902988259,0.03,195.49,195.48,155.72744853]
[1738902989064,0.03,195.49,195.48,18.52744853]
[1738902990656,0.03,195.49,195.48,13.41184853]
[1738902991473,0.03,195.49,195.48,18.77842853]
[1738902991684,0.03,195.49,195.48,19.15760143]
[1738902991860,0.03,195.49,195.48,35.15069956]
[1738902992064,0.03,195.49,195.48,253.95069956]
[1738902992273,0.03,195.49,195.48,253.57152666]
[1738902992773,0.03,195.52,195.49,13.91380853]
[1738902992959,0.03,195.52,195.51,13.66282853]
[1738902993266,0.03,195.52,195.51,29.40494666]
[1738902993445,0.03,195.52,195.51,13.66282853]
[1738902994671,0.03,195.52,195.51,18.77762853]
[1738902995250,0.03,195.52,195.51,171.97072666]
[1738902997552,0.03,195.6,195.51,268.35772666]
[1738902997754,0.03,195.6,195.57,0.25098]
[1738902997974,0.03,195.6,195.59,13.41184853]
[1738902998485,0.03,195.6,195.59,18.52454853]
[1738902999967,0.03,195.6,195.59,18.77552853]
[1738903001572,0.03,195.6,195.59,13.41184853]
[1738903001881,15.77211813,195.6,195.57,137.2]
[1738903002096,15.74211813,195.59,195.57,81.6]
[1738903002260,15.74211813,195.58,195.57,81.6]
[1738903003288,15.74211813,195.59,195.57,81.6]
[1738903003973,0.03,195.6,195.58,13.41184853]
[1738903004987,15.74211813,195.59,195.57,81.6]
[1738903005494,15.74211813,195.58,195.57,81.6]
[1738903005874,15.74211813,195.58,195.55,137.2]
[1738903006561,15.74211813,195.57,195.53,218.8]
[1738903006878,15.74211813,195.56,195.54,13.41184853]
[1738903007198,15.74211813,195.55,195.53,218.8]
[1738903007502,20.88451813,195.6,195.53,218.8]
[1738903007503,15.74211813,195.54,195.53,218.8]
[1738903008000,15.74211813,195.57,195.54,13.41184853]
[1738903008306,0.03,195.6,195.54,13.41184853]
[1738903008307,15.74211813,195.56,195.54,13.41184853]
[1738903009181,15.77211813,195.56,195.54,13.41184853]
[1738903009701,15.74211813,195.55,195.54,13.41184853]
[1738903009885,15.77211813,195.56,195.54,95.01184853]
[1738903010464,0.03,195.56,195.54,100.12574853]
[1738903013789,0.03,195.56,195.54,237.32574853]
[1738903013990,0.03,195.56,195.55,30.03414238]
[1738903016100,0.03,195.56,195.55,19.40572425]
[1738903017470,0.03,195.56,195.55,35.14784238]
[1738903018798,0.03,195.56,195.55,253.94784238]
[1738903019101,0.03,195.56,195.55,237.32554853]
[1738903020501,15.77211813,195.56,195.55,81.6]
[1738903021297,0.03,195.56,195.55,86.7137]
[1738903021498,0.03,195.56,195.55,100.12554853]
[1738903022007,0.03,195.56,195.55,81.6]
[1738903022182,15.77211813,195.56,195.55,81.6]
[1738903022584,0.03,195.56,195.55,81.6]
[1738903023473,0.03,195.56,195.55,100.12554853]
[1738903023680,0.03,195.56,195.55,100.37652853]
[1738903023977,0.0001,195.56,195.55,253.56962666]
[1738903026000,0.0001,195.56,195.55,237.32554853]
[1738903026487,0.0001,195.56,195.55,237.57652853]
[1738903030490,0.0001,195.56,195.55,253.56962666]
[1738903033500,0.0001,195.56,195.55,237.32554853]
[1738903036308,15.74221813,195.56,195.55,218.8]
[1738903037400,0.0001,195.56,195.55,232.21184853]
[1738903037725,0.0001,195.56,195.55,237.32554853]
[1738903038415,0.0001,195.56,195.55,237.57652853]
[1738903038597,0.0001,195.56,195.55,253.31864666]
[1738903039302,0.0001,195.56,195.55,253.56962666]
[1738903040631,0.0001,195.56,195.55,237.57652853]
[1738903045416,0.0001,195.56,195.55,237.32554853]
[1738903046109,0.0001,195.56,195.55,237.38854853]
[1738903047815,0.0001,195.56,195.55,223.9767]
[1738903048722,15.74221813,195.56,195.55,218.863]
[1738903050225,0.0001,195.56,195.55,218.863]
[1738903050796,15.74221813,195.56,195.55,218.863]
[1738903051426,15.74221813,195.56,195.55,0.063]
[1738903051723,22.46971813,195.56,195.55,0.063]
[1738903051927,17.35621813,195.56,195.55,0.063]
[1738903054310,15.74221813,195.56,195.55,0.063]
[1738903058840,20.85571813,195.56,195.55,0.063]
[1738903061133,15.74221813,195.56,195.55,0.063]
[1738903062549,20.85571813,195.56,195.55,0.063]
[1738903068218,15.74221813,195.56,195.55,0.063]
[1738903073171,21.9401577,195.56,195.55,0.063]
[1738903073341,28.4629577,195.56,195.55,0.063]
[1738903074058,20.0,195.53,195.52,0.063]
[1738903074229,36.70136975,195.53,195.52,0.063]
[1738903075146,41.81566975,195.53,195.52,0.063]
[1738903078664,41.94115975,195.53,195.52,0.063]
[1738903078869,57.68327788,195.53,195.48,0.063]
[1738903079038,15.74211813,195.49,195.48,0.063]
[1738903082948,20.85741813,195.49,195.48,0.063]
[1738903084677,15.18317039,195.49,195.48,0.063]
[1738903085068,10.06787039,195.49,195.48,0.063]
[1738903089277,10.06787039,195.49,195.39,81.663]
[1738903089278,0.12549,195.48,195.39,81.663]
[1738903089482,10.06787039,195.4,195.39,86.7809]
[1738903089887,0.95954771,195.47,195.39,86.7809]
[1738903089888,10.06787039,195.41,195.39,86.7809]
[1738903090269,10.06787039,195.42,195.39,86.7809]
[1738903090470,10.06787039,195.43,195.4,13.41184853]
[1738903090684,10.06787039,195.42,195.39,86.7809]
[1738903091062,6.07481089,195.49,195.4,13.41184853]
[1738903091063,10.06787039,195.43,195.4,13.41184853]
[1738903091480,10.06787039,195.43,195.41,5.1174]
[1738903091674,10.06787039,195.42,195.41,5.1174]
[1738903093080,10.06787039,195.42,195.41,223.9174]
[1738903094183,10.06787039,195.42,195.41,223.9804]
[1738903095288,10.06787039,195.42,195.41,218.863]
[1738903098882,10.06787039,195.44,195.41,223.9804]
[1738903099186,10.06787039,195.44,195.41,86.7804]
[1738903104684,10.06787039,195.43,195.41,86.7804]
[1738903104996,10.06787039,195.43,195.41,218.863]
[1738903108600,10.06787039,195.42,195.41,218.863]
[1738903108771,10.06787039,195.43,195.41,218.863]
[1738903110669,10.06787039,195.42,195.41,218.863]
[1738903110876,10.06787039,195.42,195.41,81.663]
[1738903111096,10.06787039,195.43,195.41,81.663]
[1738903114807,10.06787039,195.43,195.41,86.7803]
[1738903116597,10.06787039,195.43,195.41,81.663]
[1738903120011,10.06787039,195.43,195.41,86.7804]
[1738903122184,10.06787039,195.43,195.41,81.663]
[1738903123514,10.06787039,195.43,195.41,81.163]
[1738903124919,10.06787039,195.42,195.41,0.063]
[1738903128217,10.06787039,195.43,195.41,0.063]
[1738903128613,10.06787039,195.44,195.41,0.063]
[1738903130425,0.03,195.42,195.41,0.063]
[1738903134619,0.03,195.42,195.41,81.163]
[1738903140833,0.03,195.42,195.41,86.2804]
[1738903141329,0.03,195.42,195.41,223.4804]
[1738903141527,0.03,195.42,195.41,247.21109892]
[1738903141830,0.03,195.42,195.41,248.77549892]
[1738903142253,0.03,195.42,195.41,238.70762853]
[1738903147112,0.03,195.42,195.41,248.77549892]
[1738903147939,0.03,195.42,195.41,238.70762853]
[1738903148137,0.03,195.42,195.41,238.45664853]
[1738903149249,0.03,195.42,195.41,238.70762853]
[1738903149551,0.03,195.48,195.43,0.25098]
[1738903149853,0.03,195.48,195.44,13.41184853]
[1738903150448,0.03,195.48,195.46,13.41184853]
[1738903150651,0.03,195.48,195.45,5.1163]
[1738903150944,10.06787039,195.46,195.43,223.4169]
[1738903151323,0.03,195.48,195.43,218.3]
[1738903151324,10.06787039,195.45,195.43,218.3]
[1738903151659,10.06787039,195.44,195.43,218.3]
[1738903155260,10.09787039,195.44,195.43,218.3]
[1738903156855,0.03,195.44,195.43,247.14759892]
[1738903157637,0.03,195.44,195.43,237.07972853]
[1738903158256,0.03,195.44,195.43,247.14759892]
[1738903159565,0.0001,195.44,195.43,251.01117892]
[1738903159734,0.03,195.52,195.46,1.50196]
[1738903159937,0.03,195.52,195.5,13.66282853]
[1738903160152,0.03,195.52,195.5,231.96282853]
[1738903161155,0.03,195.52,195.51,18.52664853]
[1738903164451,0.03,195.52,195.51,236.82664853]
[1738903164863,0.03,195.52,195.51,231.71184853]
[1738903165470,10.09787039,195.52,195.51,218.3]
[1738903169045,0.03,195.52,195.51,236.82664853]
[1738903170144,0.03,195.52,195.51,237.07762853]
[1738903171071,0.03,195.52,195.51,247.14549892]
[1738903172655,0.03,195.52,195.51,247.39647892]
[1738903172962,0.0001,195.56,195.52,14.91380853]
[1738903173170,0.0001,195.56,195.55,23.73069892]
[1738903173348,0.0001,195.56,195.55,29.22240638]
[1738903175794,0.0001,195.56,195.55,19.15453599]
[1738903176274,0.0001,195.56,195.55,237.45453599]
[1738903176446,0.0001,195.56,195.55,237.07652853]
[1738903176847,0.0001,195.56,195.55,236.82554853]
[1738903177456,0.0001,195.56,195.55,218.3]
[1738903178673,0.0001,195.56,195.55,231.71184853]
[1738903178860,0.0001,195.56,195.55,236.82554853]
[1738903183878,0.0001,195.56,195.55,218.3]
[1738903184282,10.06797039,195.56,195.55,218.3]
[1738903184769,0.0001,195.56,195.55,81.1]
[1738903184976,0.0001,195.56,195.55,86.2137]
[1738903185173,0.0001,195.56,195.55,99.62554853]
[1738903185686,0.0001,195.56,195.55,81.1]
[1738903186384,0.0001,195.56,195.55,218.3]
[1738903187057,0.0001,195.56,195.55,236.82554853]
[1738903187767,0.0001,195.56,195.55,247.14439892]
[1738903189876,0.0001,195.56,195.55,236.82554853]
[1738903191870,30.06797039,195.56,195.52,0.063]
[1738903192076,20.95909595,195.55,195.52,0.063]
[1738903192684,10.06787039,195.53,195.52,0.063]
[1738903194973,16.14130658,195.53,195.52,0.063]
[1738903197191,22.48990658,195.53,195.52,0.063]
[1738903197690,1.5029,195.48,195.4,137.2]
[1738903197903,10.06787039,195.43,195.4,137.2]
[1738903198087,10.06787039,195.44,195.41,13.47484853]
[1738903198310,10.06787039,195.45,195.42,137.263]
[1738903198591,10.06787039,195.44,195.42,137.263]
[1738903198800,10.06787039,195.44,195.42,0.063]
[1738903199683,10.06787039,195.45,195.42,0.063]
[1738903200381,10.06787039,195.46,195.42,0.063]
[1738903202082,1.5029,195.48,195.42,0.063]
[1738903202083,10.06787039,195.44,195.42,0.063]
[1738903202401,10.06787039,195.44,195.42,137.263]
[1738903202602,10.06787039,195.43,195.42,0.063]
[1738903204602,15.18477039,195.43,195.42,0.063]
[1738903204780,16.14449533,195.43,195.42,0.063]
[1738903205781,30.0,195.42,195.41,0.063]
[1738903205972,71.97485195,195.4,195.39,0.063]
[1738903206171,72.93471131,195.4,195.39,0.063]
[1738903207004,32.66322975,195.4,195.39,0.063]
[1738903207999,31.70337039,195.4,195.39,0.063]
[1738903208206,30.06787039,195.4,195.39,0.063]
[1738903210197,35.18557039,195.4,195.39,0.063]
[1738903211978,36.14541976,195.4,195.39,0.063]
[1738903212182,76.41690132,195.4,195.39,0.063]
[1738903213103,76.66788132,195.4,195.39,0.063]
[1738903215405,36.27090976,195.4,195.39,0.063]
[1738903216808,76.54239132,195.4,195.39,0.063]
[1738903217490,36.27090976,195.4,195.39,0.063]